fUSD/lending_fUSD_20250702
["ID","MTS","AMOUNT","RATE_DAILY","PERIOD"]
[369096614,1751475032731,-158.37,0.00022505,2]
[369096615,1751475032745,-262.140501,0.00023053,2]
[369096616,1751475032761,-428.70999743,0.0002306,2]
[369096617,1751475032777,-71.29000257,0.0002306,2]
[369096618,1751475032790,-151.0,0.00023738,2]
[369096619,1751475032805,-348.26156882,0.00024658,15]
[369096620,1751475032839,-1651.73843118,0.00024658,15]
[369096621,1751475032853,-503.0,0.00025205,2]
[369096622,1751475032866,-266.0,0.00027,7]
[369096623,1751475032880,-463.0,0.00027331,2]
[369096624,1751475032894,-197.0,0.00027578,2]
[369096625,1751475032908,-1058.0,0.00027636,2]
[369096626,1751475032921,-266.0,0.00027671,14]
[369096627,1751475032935,-300.0,0.00027677,120]
[369096628,1751475032949,-1446.0,0.00027715,2]
[369096629,1751475032966,-1200.0,0.0002785,2]
[369096630,1751475032980,-1937.0,0.00027851,2]
[369096631,1751475032993,-300.0,0.00027899,2]
[369096632,1751475033007,-1023.73920263,0.000279,18]
[369096633,1751475033022,-151.0,0.00028,120]
[369096634,1751475033037,-909.0,0.00028009,2]
[369096635,1751475033053,-1023.7392025,0.00028141,18]
[369096636,1751475033068,-1234.0,0.00028149,2]
[369096637,1751475033084,-551.0,0.00028205,2]
[369096638,1751475033099,-921.0,0.00028288,2]
[369096639,1751475033114,-1310.0,0.00028346,2]
[369096640,1751475033128,-1023.7392025,0.00028383,18]
[369096641,1751475033144,-1906.0,0.00028427,2]
[369096642,1751475033158,-300.0,0.00028482,120]
[369096643,1751475033175,-1129.0,0.00028486,2]
[369096644,1751475033189,-150.0,0.00028607,2]
[369096645,1751475033204,-1023.7392025,0.00028624,19]
[369096646,1751475033219,-1500.0,0.00028753,120]
[369096647,1751475033236,-266.0,0.00028767,14]
[369096648,1751475033252,-1023.7392025,0.00028866,19]
[369096649,1751475033267,-445.0,0.00028879,2]
[369096650,1751475033282,-151.0,0.00029,120]
[369096651,1751475033296,-573.39188589,0.00029005,2]
[369096652,1751475033324,-1236.08471158,0.00029005,2]
[369096653,1751475033343,-5103.16540253,0.00029005,2]
[369096654,1751475033358,-207.4,0.00029005,2]
[369096655,1751475033373,-1516.0,0.00029022,2]
[369096656,1751475033388,-7168.409754,0.0002906,2]
[369096657,1751475033402,-1023.7392025,0.00029107,20]
[369096658,1751475033418,-5878.99149572,0.00029115,2]
[369096659,1751475033436,-466.80584711,0.00029115,2]
[369096660,1751475033459,-1087.84357207,0.00029115,2]
[369096661,1751475033475,-268.00639353,0.00029166,2]
[369096662,1751475033505,-365.99360647,0.00029166,2]
[369096663,1751475033519,-4393.36084376,0.0002917,2]
[369096664,1751475033534,-300.0,0.00029279,120]
[369096665,1751475033547,-1023.7392025,0.00029348,20]
[369096666,1751475033562,-150.0,0.00029371,2]
[369096667,1751475033577,-303.13,0.00029461,2]
[369096668,1751475033592,-300.97,0.00029461,2]
[369096669,1751475033607,-305.84,0.00029461,2]
[369096670,1751475033620,-200.0,0.00029505,7]
[369096671,1751475033634,-1023.7392025,0.0002959,21]
[369096672,1751475033648,-181.22,0.00029768,2]
[369096673,1751475033662,-169.6,0.00029771,2]
[369096674,1751475033677,-1023.7392025,0.00029831,21]
[369096675,1751475033694,-156.98,0.00029918,2]
[369096676,1751475033708,-156.98,0.00029935,2]
[369096677,1751475033723,-156.98,0.00029951,2]
[369096678,1751475033738,-156.98,0.00029968,2]
[369096679,1751475033753,-156.98,0.00029984,2]
[369096680,1751475033768,-1000.0,0.0003,2]
[369096681,1751475033783,-151.0,0.0003,120]
[369096682,1751475033798,-10327.73833406,0.0003,15]
[369096683,1751475033813,-171.0,0.0003,14]
[369096684,1751475033828,-156.98,0.00030001,2]
[369096685,1751475033843,-20209.62814989,0.00030013,2]
[369096686,1751475033858,-5166.49040728,0.00030014,2]
[369096687,1751475033875,-7630.49999626,0.00030014,2]
[369096688,1751475038024,-11103.00959646,0.00030014,2]
[369096689,1751475038034,-156.98,0.00030018,2]
[369096690,1751475038044,-156.98,0.00030034,2]
[369096691,1751475038054,-156.98,0.00030051,2]
[369096692,1751475038063,-156.98,0.00030068,2]
[369096693,1751475038074,-1023.7392025,0.00030072,22]
[369096694,1751475038087,-420.0,0.00030134,2]
[369096695,1751475038098,-150.0,0.00030135,2]
[369096696,1751475038108,-272.0,0.00030205,14]
[369096697,1751475038118,-640.0,0.00030214,2]
[369096698,1751475038128,-286.31668,0.0003025,2]
[369096699,1751475038138,-286.31668,0.0003026,2]
[369096700,1751475038148,-286.31669,0.0003027,2]
[369096701,1751475038158,-286.31668,0.0003027,2]
[369096702,1751475038167,-286.31669,0.0003027,2]
[369096703,1751475038177,-286.31668,0.0003027,2]
[369096704,1751475038186,-5000.0,0.00030282,2]
[369096705,1751475038196,-1023.7392025,0.00030314,22]
[369096706,1751475038206,-215.0738,0.00030374,2]
[369096707,1751475038216,-500.0,0.000304,2]
[369096708,1751475038226,-241.49149021,0.000304,2]
[369096709,1751475038239,-300.0,0.000304,2]
[369096710,1751475038249,-177.55969074,0.000304,2]
[369096711,1751475038258,-300.0,0.000304,2]
[369096712,1751475038268,-300.0,0.000304,2]
[369096713,1751475038279,-500.0,0.000304,2]
[369096714,1751475038288,-300.0,0.000304,2]
[369096715,1751475038298,-223.40182747,0.000304,2]
[369096716,1751475038308,-247.43723805,0.000304,2]
[369096717,1751475038318,-500.0,0.000304,2]
[369096718,1751475038332,-300.0,0.000304,2]
[369096719,1751475038342,-500.0,0.000304,2]
[369096720,1751475038351,-300.0,0.000304,2]
[369096722,1751475038361,-500.0,0.000304,2]
[369096724,1751475038371,-500.0,0.000304,2]
[369096726,1751475038381,-300.0,0.000304,2]
[369096728,1751475038390,-500.0,0.000304,2]
[369096730,1751475038400,-300.0,0.000304,2]
[369096732,1751475038409,-500.0,0.000304,2]
[369096733,1751475038418,-300.0,0.000304,2]
[369096734,1751475038427,-153.03687486,0.000304,2]
[369096735,1751475038437,-500.0,0.000304,2]
[369096736,1751475038446,-300.0,0.000304,2]
[369096737,1751475038456,-500.0,0.000304,2]
[369096739,1751475038465,-300.0,0.000304,2]
[369096741,1751475038475,-500.0,0.000304,2]
[369096742,1751475038484,-500.0,0.000304,2]
[369096744,1751475038494,-300.0,0.000304,2]
[369096745,1751475038504,-500.0,0.000304,2]
[369096746,1751475038514,-300.0,0.000304,2]
[369096748,1751475038523,-500.0,0.000304,2]
[369096749,1751475038532,-500.0,0.000304,2]
[369096750,1751475038543,-151.0,0.000304,2]
[369096751,1751475038553,-151.0,0.000304,2]
[369096752,1751475038563,-500.0,0.000304,2]
[369096753,1751475038573,-300.0,0.000304,2]
[369096754,1751475038585,-500.0,0.000304,2]
[369096755,1751475038595,-500.0,0.000304,2]
[369096756,1751475038605,-280.0,0.000304,2]
[369096757,1751475038614,-500.0,0.000304,2]
[369096758,1751475038623,-500.0,0.000304,2]
[369096759,1751475038633,-500.0,0.000304,2]
[369096760,1751475038642,-500.0,0.000304,2]
[369096761,1751475038652,-500.0,0.000304,2]
[369096762,1751475038661,-500.0,0.000304,2]
[369096763,1751475038671,-500.0,0.000304,2]
[369096764,1751475038681,-500.0,0.000304,2]
[369096765,1751475038691,-202.0,0.000304,2]
[369096766,1751475038701,-300.0,0.000304,2]
[369096767,1751475038711,-668.65185757,0.000304,2]
[369096768,1751475038722,-171.0,0.00030411,14]
[369096769,1751475038731,-5417.05,0.00030436,2]
[369096770,1751475038741,-492.61,0.00030473,2]
[369096771,1751475038751,-168.0,0.00030482,2]
[369096772,1751475038761,-1023.7392025,0.00030555,23]
[369096773,1751475038772,-1023.7392025,0.00030797,23]
[369096774,1751475038782,-150.0,0.000309,2]
[369096775,1751475038791,-300.0,0.00030948,2]
[369096776,1751475038802,-256.59241585,0.00030948,2]
[369096777,1751475038811,-151.0,0.00030948,2]
[369096778,1751475038821,-189.34,0.00030962,120]
[369096779,1751475038832,-1000.0,0.00031,2]
[369096780,1751475038842,-151.0,0.00031,120]
[369096781,1751475038851,-1023.7392025,0.00031038,24]
[369096782,1751475038861,-12270.09106853,0.000311,7]
[369096783,1751475038870,-302.05,0.00031178,2]
[369096784,1751475038880,-1023.7392025,0.00031279,24]
[369096785,1751475038890,-158.37,0.00031311,2]
[369096786,1751475038900,-150.0,0.00031379,2]
[369096787,1751475038910,-154.124,0.00031422,29]
[369096788,1751475038920,-1186.081,0.00031422,29]
[369096789,1751475038931,-300.0,0.00031496,2]
[369096790,1751475038940,-266.08633524,0.00031496,2]
[369096791,1751475038951,-151.29755904,0.00031496,2]
[369096792,1751475038961,-1353.52365602,0.000315,2]
[369096793,1751475038971,-2248.308,0.000315,120]
[369096794,1751475038981,-1023.7392025,0.00031521,25]
[369096795,1751475038991,-200.0,0.00031629,2]
[369096796,1751475039001,-171.0,0.00031644,14]
[369096797,1751475039011,-150.0,0.00031664,2]
[369096798,1751475039021,-223.0315306,0.00031743,2]
[369096799,1751475039031,-1023.7392025,0.00031762,25]
[369096800,1751475039041,-311.1,0.00031769,2]
[369096801,1751475039051,-703.8335088,0.00031769,2]
[369096802,1751475039062,-2020.20578696,0.00031889,2]
[369096803,1751475039072,-1000.0,0.0003189,2]
[369096804,1751475039084,-1116.8126,0.0003189,2]
[369096805,1751475039094,-1457.9016,0.0003189,2]
[369096806,1751475039105,-190.0,0.000319,120]
[369096807,1751475039114,-6767.8691985,0.000319,2]
[369096808,1751475039124,-159.94550204,0.000319,15]
[369096809,1751475039134,-152.21861039,0.00031942,2]
[369096810,1751475039143,-2004.27,0.00031972,2]
[369096811,1751475039153,-2004.27,0.00031972,2]
[369096812,1751475039163,-200.0,0.00031975,2]
[369096813,1751475039173,-197.27925,0.00031975,120]
[369096814,1751475039183,-5719076.69146245,0.00031982,5]
[369096815,1751475039196,-1481.29055486,0.00031982,5]
[369096816,1751475039219,-1000.0,0.00030213,2]
[369096817,1751475039230,-20143.22700003,0.00031982,5]
[369096819,1751475039351,-16232.48016,0.00031982,5]
[369096820,1751475039370,-2867.42856329,0.00031982,5]
[369096822,1751475040610,-154.0,0.00030553,2]
[369096823,1751475040622,-836.11932155,0.00031977,2]
[369096824,1751475040632,-1484.85317845,0.00031982,5]
[369096825,1751475040658,-23983.59563057,0.00031982,5]
[369096826,1751475040670,-941.05623865,0.00031982,5]
[369096827,1751475040682,-921.38100018,0.00031982,5]
[369096835,1751475044330,-1216.0,0.00030553,2]
[369096836,1751475044343,-38455.83889658,0.00031982,5]
[369096839,1751475044387,-1018.559,0.00031982,5]
[369096840,1751475044442,-11290.7325167,0.00031982,5]
[369096841,1751475044454,-15998.99999967,0.00031982,5]
[369096849,1751475046031,-10980.63456963,0.00031982,5]
[369096850,1751475046044,-17564.2213333,0.00031982,5]
[369096851,1751475046056,-1614.0640379,0.00031982,5]
[369096852,1751475046326,-3080.26115196,0.00031982,5]
[369096853,1751475046340,-1044.62491458,0.00031982,5]
[369096854,1751475046378,-1793.58,0.00031982,5]
[369096855,1751475046389,-1026.153693,0.00031982,5]
[369096856,1751475046400,-615.46741963,0.00031982,5]
[369096861,1751475176188,158.37,0.00013699,2]
[369096864,1751475252769,500.0,0.00027397,120]
[369096881,1751475626199,150.0,0.00022001,29]
[369096882,1751475626268,150.0,0.00022001,29]
[369096883,1751475626512,150.0,0.00022001,29]
[369096884,1751475626743,172.38087,0.00022001,29]
[369096885,1751475707804,1000.0,0.00027397,120]
[369096887,1751475813651,150.0,0.00020104,2]
[369096890,1751475981999,171.0,0.0002739,120]
[369096902,1751476178743,224.66607199,0.0002739,120]
[369096917,1751476232219,-500.0,0.00024557,2]
[369096918,1751476232229,-513.0,0.00024557,2]
[369096919,1751476232239,-191.14882893,0.00024632,2]
[369096920,1751476232249,-2000.0,0.00024658,15]
[369096921,1751476232258,-250.0,0.00024732,2]
[369096922,1751476232268,-2500.0,0.00024732,2]
[369096923,1751476232278,-1171.0,0.00024906,2]
[369096924,1751476232288,-158.37,0.00024907,2]
[369096925,1751476232298,-723.50522578,0.000269,16]
[369096926,1751476232307,-500.0,0.0002692,5]
[369096927,1751476232317,-250.0,0.00027123,2]
[369096928,1751476232328,-2500.0,0.00027123,2]
[369096929,1751476232338,-723.50522549,0.00027176,16]
[369096930,1751476232347,-723.50522549,0.00027452,17]
[369096931,1751476232357,-418.02096979,0.00027619,2]
[369096932,1751476232366,-841.0,0.00027663,2]
[369096933,1751476232376,-723.50522549,0.00027728,17]
[369096934,1751476232386,-723.50522549,0.00028003,18]
[369096935,1751476232395,-723.50522549,0.00028279,18]
[369096936,1751476232404,-500.0,0.00028521,2]
[369096937,1751476232415,-723.50522549,0.00028555,19]
[369096938,1751476232424,-150.0,0.0002876,2]
[369096939,1751476232433,-723.50522549,0.00028831,19]
[369096940,1751476232443,-12667.96,0.00028831,2]
[369096941,1751476232452,-6432.24,0.00028861,2]
[369096942,1751476232462,-1324.29,0.00028861,2]
[369096943,1751476232472,-1500.0,0.00028935,120]
[369096944,1751476232482,-150.0,0.00028965,2]
[369096945,1751476232491,-152.0,0.00029,120]
[369096946,1751476232501,-178.0,0.00029,120]
[369096947,1751476232510,-723.50522549,0.00029107,20]
[369096948,1751476232520,-225.73,0.0002911,120]
[369096949,1751476232530,-774.0,0.0002914,7]
[369096951,1751476232539,-500.0,0.00029283,9]
[369096953,1751476232548,-1000.0,0.00029322,2]
[369096955,1751476232557,-723.50522549,0.00029383,20]
[369096957,1751476232567,-500.0,0.00029385,2]
[369096959,1751476232577,-774.0,0.00029461,2]
[369096961,1751476232586,-776.0,0.00029472,7]
[369096963,1751476232596,-774.0,0.00029507,2]
[369096965,1751476232606,-150.0,0.00029528,2]
[369096967,1751476232615,-812.04,0.0002956,2]
[369096969,1751476232626,-167.33,0.00029572,2]
[369096971,1751476232635,-1000.0,0.00029629,2]
[369096973,1751476232645,-13304.083129,0.0002963,2]
[369096976,1751476232662,-10595.916871,0.0002963,2]
[369096978,1751476232671,-723.50522549,0.00029659,21]
[369096980,1751476232681,-200.0,0.00029759,2]
[369096982,1751476232691,-151.01,0.00029785,2]
[369096983,1751476232702,-269.58,0.00029785,2]
[369096984,1751476232712,-776.0,0.00029894,2]
[369096986,1751476232722,-170.0,0.000299,120]
[369096987,1751476232733,-774.0,0.00029918,2]
[369096988,1751476232743,-723.50522549,0.00029934,22]
[369096989,1751476232753,-275.12,0.00029998,2]
[369096990,1751476232762,-500.0,0.0003,120]
[369096991,1751476232771,-167.0,0.0003,14]
[369096992,1751476232781,-275.12,0.00030006,2]
[369096993,1751476232790,-275.12,0.00030014,2]
[369096994,1751476232800,-275.12,0.00030022,2]
[369096995,1751476232810,-275.12,0.0003003,2]
[369096996,1751476232820,-774.0,0.00030037,2]
[369096997,1751476232829,-275.12,0.00030038,2]
[369096998,1751476232839,-275.12,0.00030046,2]
[369096999,1751476232848,-275.12,0.00030053,2]
[369097000,1751476232858,-275.12,0.00030061,2]
[369097001,1751476232869,-275.12,0.00030069,2]
[369097002,1751476232878,-275.12,0.00030077,2]
[369097003,1751476232887,-275.12,0.00030085,2]
[369097004,1751476232897,-275.12,0.00030093,2]
[369097005,1751476232907,-275.12,0.00030101,2]
[369097006,1751476232917,-275.12,0.00030109,2]
[369097007,1751476232926,-275.12,0.00030117,2]
[369097008,1751476232936,-275.12,0.00030124,2]
[369097009,1751476232945,-275.12,0.00030132,2]
[369097010,1751476232955,-275.12,0.0003014,2]
[369097011,1751476232964,-275.12,0.00030148,2]
[369097012,1751476232973,-774.0,0.00030196,2]
[369097013,1751476232983,-723.50522549,0.0003021,22]
[369097014,1751476232992,-152.0,0.00030231,3]
[369097015,1751476233002,-150.0,0.00030297,2]
[369097016,1751476233012,-167.0,0.00030411,14]
[369097017,1751476233022,-500.0,0.00030466,2]
[369097018,1751476233031,-723.50522549,0.00030486,23]
[369097019,1751476233040,-723.50522549,0.00030762,23]
[369097020,1751476233050,-4286.303885,0.00030769,2]
[369097021,1751476233059,-207.4,0.00030769,2]
[369097022,1751476233070,-776.0,0.00030947,2]
[369097023,1751476233079,-5000.0,0.00030951,2]
[369097024,1751476233088,-250.0,0.00030978,2]
[369097025,1751476233102,-1000.0,0.00031,3]
[369097026,1751476233112,-1000.0,0.00031,4]
[369097027,1751476233122,-1000.0,0.00031,5]
[369097028,1751476233131,-723.50522549,0.00031038,24]
[369097029,1751476233142,-774.0,0.00031063,2]
[369097030,1751476233482,-150.0,0.00031065,2]
[369097031,1751476233494,-1216.0,0.00031072,2]
[369097032,1751476233504,-774.0,0.00031076,7]
[369097033,1751476233514,-346.86,0.0003109,120]
[369097034,1751476233524,-1000.0,0.00031307,2]
[369097035,1751476233535,-151.0,0.00031307,2]
[369097036,1751476233545,-636.99495754,0.00031307,2]
[369097037,1751476233555,-202.0,0.00031307,2]
[369097038,1751476233565,-300.0,0.00031307,2]
[369097039,1751476233575,-300.0,0.00031307,2]
[369097040,1751476233585,-300.0,0.00031307,2]
[369097041,1751476233595,-300.0,0.00031307,2]
[369097042,1751476233605,-300.0,0.00031307,2]
[369097043,1751476233616,-223.40182747,0.00031307,2]
[369097044,1751476233626,-153.03687486,0.00031307,2]
[369097045,1751476233635,-300.0,0.00031307,2]
[369097046,1751476233645,-300.0,0.00031307,2]
[369097047,1751476233659,-300.0,0.00031307,2]
[369097048,1751476233670,-500.0,0.00031307,2]
[369097049,1751476233680,-500.0,0.00031307,2]
[369097050,1751476233689,-300.0,0.00031307,2]
[369097051,1751476233699,-500.0,0.00031307,2]
[369097052,1751476233710,-300.0,0.00031307,2]
[369097053,1751476233719,-300.0,0.00031307,2]
[369097054,1751476233730,-300.0,0.00031307,2]
[369097055,1751476233740,-500.0,0.00031307,2]
[369097056,1751476233750,-300.0,0.00031307,2]
[369097057,1751476233759,-500.0,0.00031307,2]
[369097058,1751476233769,-428.76221336,0.00031307,2]
[369097059,1751476233779,-500.0,0.00031307,2]
[369097060,1751476233789,-247.43723805,0.00031307,2]
[369097061,1751476233799,-500.0,0.00031307,2]
[369097062,1751476233809,-500.0,0.00031307,2]
[369097063,1751476233818,-500.0,0.00031307,2]
[369097064,1751476233828,-500.0,0.00031307,2]
[369097065,1751476233838,-241.49149021,0.00031307,2]
[369097066,1751476233848,-500.0,0.00031307,2]
[369097067,1751476233857,-500.0,0.00031307,2]
[369097068,1751476233867,-177.55969074,0.00031307,2]
[369097069,1751476233877,-500.0,0.00031307,2]
[369097070,1751476233886,-500.0,0.00031307,2]
[369097071,1751476233896,-500.0,0.00031307,2]
[369097072,1751476233906,-500.0,0.00031307,2]
[369097073,1751476233916,-151.0,0.00031307,2]
[369097074,1751476233925,-500.0,0.00031307,2]
[369097075,1751476233934,-500.0,0.00031307,2]
[369097076,1751476233944,-500.0,0.00031307,2]
[369097077,1751476233954,-500.0,0.00031307,2]
[369097078,1751476233963,-500.0,0.00031307,2]
[369097079,1751476233973,-500.0,0.00031307,2]
[369097080,1751476233982,-500.0,0.00031307,2]
[369097081,1751476233992,-500.0,0.00031307,2]
[369097082,1751476234002,-500.0,0.00031307,2]
[369097083,1751476234011,-500.0,0.00031307,2]
[369097084,1751476234021,-500.0,0.00031307,2]
[369097085,1751476234031,-500.0,0.00031307,2]
[369097086,1751476234041,-300.0,0.00031307,2]
[369097087,1751476234050,-300.0,0.00031307,2]
[369097088,1751476234059,-500.0,0.00031307,2]
[369097089,1751476234070,-500.0,0.00031307,2]
[369097090,1751476234081,-300.0,0.00031307,2]
[369097091,1751476234092,-500.0,0.00031307,2]
[369097092,1751476234101,-300.0,0.00031307,2]
[369097093,1751476234110,-236.65624998,0.00031307,2]
[369097094,1751476234120,-500.0,0.00031307,2]
[369097095,1751476234129,-500.0,0.00031307,2]
[369097096,1751476234140,-500.0,0.00031307,2]
[369097097,1751476234150,-668.65185757,0.00031307,2]
[369097098,1751476234160,-723.50522549,0.00031314,24]
[369097099,1751476234170,-836.11932155,0.0003132,2]
[369097100,1751476234180,-774.0,0.00031413,7]
[369097101,1751476234190,-1186.081,0.00031425,29]
[369097102,1751476234199,-154.124,0.00031425,29]
[369097103,1751476234209,-150.0,0.00031483,2]
[369097104,1751476234219,-723.50522549,0.0003159,25]
[369097105,1751476234228,-1163.0,0.00031632,2]
[369097106,1751476234237,-280.425,0.00031632,2]
[369097107,1751476234248,-4107.0,0.00031632,2]
[369097108,1751476234259,-875.089,0.00031632,2]
[369097109,1751476234269,-156.0,0.00031632,2]
[369097110,1751476234280,-167.0,0.00031644,14]
[369097111,1751476234290,-500.0,0.00031646,13]
[369097112,1751476234299,-150.0,0.00031833,2]
[369097113,1751476234309,-300.0,0.00031855,2]
[369097114,1751476234319,-256.59241585,0.00031855,2]
[369097115,1751476234335,-151.0,0.00031855,2]
[369097116,1751476234345,-723.50522549,0.00031866,25]
[369097117,1751476234355,-6818.69303132,0.00031876,2]
[369097118,1751476234365,-159.94550204,0.00031877,15]
[369097119,1751476234375,-1000.0,0.0003189,2]
[369097120,1751476234386,-5847.2821,0.0003189,2]
[369097121,1751476234396,-2232.7606,0.0003189,2]
[369097122,1751476234407,-156.70473818,0.000319,3]
[369097123,1751476234417,-330.39415501,0.000319,2]
[369097124,1751476234427,-5000.0,0.000319,2]
[369097125,1751476234436,-175.76018417,0.000319,3]
[369097126,1751476234445,-152.0,0.00031908,4]
[369097127,1751476234455,-152.21861039,0.00031945,2]
[369097128,1751476234465,-235.11,0.00031956,2]
[369097129,1751476234474,-27009.0444119,0.00031958,5]
[369097130,1751476234489,-53931.90384513,0.00031958,5]
[369097131,1751476234501,-4286.303885,0.00031958,5]
[369097132,1751476234513,-460.75959115,0.00031958,5]
[369097133,1751476234579,-8869.50282151,0.00031958,5]
[369097134,1751476234732,-627.58285509,0.00031958,5]
[369097135,1751476234759,-1074.46764908,0.00031958,5]
[369097146,1751476238243,-753.0,0.00031632,2]
[369097147,1751476238253,-5812671.34917978,0.00031958,5]
[369097148,1751476238265,-1475.15021105,0.00031958,5]
[369097149,1751476238349,-4012.07493823,0.00031958,5]
[369097276,1751476240449,-287879.28170083,0.00031958,5]
[369097301,1751476240768,-264.78649278,0.00031958,5]
[369097303,1751476240780,-1734.85625653,0.00031958,5]
[369097306,1751476240811,-322.53847436,0.00031958,5]
[369097308,1751476240823,-23710.13788744,0.00031958,5]
[369097310,1751476240834,-1790.63959764,0.00031958,5]
[369097312,1751476240846,-767.91009423,0.00031958,5]
[369097488,1751476244447,-1000.0,0.00031948,2]
[369097496,1751476244552,-2.13,0.00031948,2]
[369097497,1751476244561,-440.413773,0.00031948,2]
[369097524,1751476246195,-561.716227,0.00031948,2]
[369097525,1751476246204,-20019.30291711,0.00031958,5]
[369097526,1751476246215,-30739.44999921,0.00031958,5]
[369097527,1751476246390,-628.4,0.00031958,5]
[369097528,1751476246438,-415.68496478,0.00031958,5]
[369097529,1751476246450,-1383.60570002,0.00031958,5]
[369097530,1751476246461,-353.0,0.00031958,5]
[369097531,1751476246473,-65038.22350779,0.00031958,5]
[369097532,1751476246493,-2567.59999997,0.00031958,5]
[369097533,1751476246504,-53227.03030576,0.00031958,5]
[369097534,1751476246621,-4862.11913,0.00031958,5]
[369097535,1751476246634,-3080.55672848,0.00031958,5]
[369097537,1751476336741,158.37,0.00013699,2]
[369097545,1751476507881,215.774867,0.00027397,120]
[369097546,1751476544018,1000.0,0.00027397,120]
[369097548,1751476714770,301.32,0.00020104,2]
[369097554,1751477097445,215.13695205,0.000273,120]
[369097555,1751477137509,16708.24408991,9e-05,2]
[369097556,1751477137536,14678.41037922,9e-05,2]
[369097588,1751477318309,7690.76,0.000151,2]
[369097611,1751477431376,-1982.94963371,0.00022,12]
[369097613,1751477431386,-217.79663614,0.00024,5]
[369097615,1751477431397,-4782.20336386,0.00024,5]
[369097616,1751477431407,-301.86,0.00025333,2]
[369097617,1751477431416,-302.74,0.00025335,2]
[369097618,1751477431425,-1200.0,0.00025348,2]
[369097619,1751477431435,-302.66,0.00025349,2]
[369097620,1751477431444,-304.29,0.00025349,2]
[369097621,1751477431453,-300.0,0.00025366,2]
[369097622,1751477431462,-301.23,0.00025367,2]
[369097623,1751477431472,-304.53,0.00025367,2]
[369097624,1751477431481,-304.72,0.00025399,2]
[369097625,1751477431491,-303.97,0.00025399,2]
[369097626,1751477431501,-300.74,0.00025399,2]
[369097627,1751477431511,-304.81,0.00025399,2]
[369097628,1751477431520,-300.04,0.00025399,2]
[369097629,1751477431530,-305.57,0.00025399,2]
[369097630,1751477431540,-255.0,0.00025399,2]
[369097631,1751477431550,-269.0,0.00025399,2]
[369097632,1751477431560,-302.03,0.00025399,2]
[369097633,1751477431569,-305.32,0.00025399,2]
[369097634,1751477431578,-304.49,0.00025399,2]
[369097635,1751477431588,-1749.21781722,0.000254,2]
[369097636,1751477431598,-301.99,0.000254,2]
[369097637,1751477431607,-305.91,0.000254,2]
[369097638,1751477431616,-301.95,0.000254,2]
[369097639,1751477431626,-303.41,0.000254,2]
[369097640,1751477431635,-302.03,0.000254,2]
[369097641,1751477431645,-302.84,0.000254,2]
[369097642,1751477431655,-304.16,0.000254,2]
[369097643,1751477431664,-304.59,0.000254,2]
[369097644,1751477431674,-302.18,0.000254,2]
[369097645,1751477431684,-305.49,0.000254,2]
[369097646,1751477431693,-300.7,0.000254,2]
[369097647,1751477431703,-305.63,0.000254,2]
[369097648,1751477431712,-252.99369701,0.000254,2]
[369097649,1751477431725,-52.23630299,0.000254,2]
[369097650,1751477431734,-302.49,0.000254,2]
[369097651,1751477431744,-302.35,0.000254,2]
[369097652,1751477431754,-304.65,0.000254,2]